[Event "Baku Open 2024"]
[Site "Baku"]
[Date "2024.07.06"]
[Round "8.25"]
[White "Rustamov, Rustam"]
[Black "Ajay Santhosh Parvathareddy"]
[Result "1/2-1/2"]
[ECO "B92"]
[WhiteElo "2285"]
[BlackElo "2163"]
[Annotator "TA"]
[PlyCount "131"]
[EventDate "2024.06.29"]
[EventType "swiss"]
[EventCountry "AZE"]
[SourceTitle "playchess.com"]
[Source "ChessBase"]
[SourceQuality "1"]
[TimeControl "5400+30"]

{[%evp 25,131,0,0,-22,-35,-27,-24,-35,-42,-56,-48,-103,-84,-134,-133,-136,-112,-144,-117,-126,-92,-84,-86,-104,-67,-60,-48,-61,-52,-155,-166,-169,-157,-124,-109,-226,-201,-195,-215,-204,-216,-216,-217,-205,-204,-198,-128,-132,-107,-111,-75,-82,-39,-43,-8,-8,-8,-13,-8,-8,-8,-8,-8,-8,-8,-8,-8,-8,-8,-8,-8,-8,-8,-8,-8,-8,-8,-8,-8,-8,-8,-8,-8,-8,-8,-8,-8,-8,-8,-8,-8,-8,0,-8,0,-8,-8,-8,0,-8,0,-8,-8,-8,-8,-8,0,-8]} 1. e4 {[%emt 0:00:02]} c5 {[%emt 0:00:05]} 2. Nf3 {[%emt 0:00:04]} d6 {[%emt 0:00:06]} 3. d4 {[%emt 0:00:14]} cxd4 {[%emt 0:00:04]} 4. Nxd4 {[%emt 0:00:09]} Nf6 {[%emt 0:00:04]} 5. Nc3 {[%emt 0:00:14]} a6 {[%emt 0:00:05]} 6. Be2 {[%emt 0:00:16]} e5 {[%emt 0:00:27]} 7. Nb3 {[%emt 0:00:22]} Be7 {[%emt 0:00:07]} 8. Be3 {[%emt 0:00:08]} Be6 {[%emt 0:00:08]} 9. O-O {[%emt 0:00:55]} O-O {[%emt 0:00:35]} 10. f4 {[%emt 0:00:32]} exf4 {[%emt 0:03:10]} 11. Bxf4 {[%emt 0:00:52]} Nc6 {[%emt 0:01:22]} 12. Kh1 {[%emt 0:00:35]} Ne5 {[%emt 0:04:00]} 13. Nd4 {[%emt 0:06:20]} Rc8 {[%emt 0:01:44]} 14. Nxe6 {[%emt 0:10:02]} fxe6 {[%emt 0:00:36]} 15. Qd4 {[%emt 0:04:32]} Qc7 {[%emt 0:04:29]} 16. Bg3 {[%emt 0:01:30] Black has an edge.} Nc4 {[%emt 0:07:19]} 17. Bxc4 {[%emt 0:27:00]} Qxc4 {[%emt 0:00:08]} 18. Qxc4 {[%emt 0:03:12]} (18. Qd3 $15) 18... Rxc4 $17 {[%emt 0:01:11]} 19. Bh4 {[%emt 0:13:25]} (19. Rfd1 $142) 19... h6 {[%emt 0:04:53]} 20. Rfd1 {[%emt 0:04:06]} Rfc8 {[%emt 0:07:21]} 21. a3 {[%emt 0:04:34]} Kf7 {[%emt 0:01:11]} 22. Bxf6 {[%emt 0:01:02]} gxf6 {[%emt 0:07:17]} (22... Bxf6 23. Rxd6 R8c7 24. h3 (24. Rf1 $2 Ke7 $17)) 23. Rd3 {[%emt 0:00:17]} b5 {[%emt 0:00:07]} 24. Rf1 {[%emt 0:00:44]} R4c5 {[%emt 0:01:00]} 25. g3 {[%emt 0:04:10]} a5 {[%emt 0:02:53] And now ...b4 would win.} 26. Rd4 {[%emt 0:00:20]} Rb8 {[%emt 0:00:06]} 27. Rf3 {[%emt 0:00:29]} (27. Rc1 $15) 27... b4 {[%emt 0:01:05]} 28. axb4 {[%emt 0:06:11]} axb4 {[%emt 0:00:10]} 29. Nd1 {[%emt 0:02:54]} Rxc2 {[%emt 0:00:10]} 30. b3 {[%emt 0:00:06]} (30. Rf2 $17 b3 31. Rdd2) 30... Ra8 {[%emt 0:06:18]} 31. Rf2 {[%emt 0:00:52]} Raa2 {[%emt 0:08:07]} 32. Rxc2 {[%emt 0:01:22]} Rxc2 $19 {[%emt 0:00:02][%mdl 4096] Endgame. KRB-KRN} 33. Rd3 {[%emt 0:00:20]} Re2 {[%emt 0:03:17]} 34. Ne3 {[%emt 0:01:16]} Bf8 {[%emt 0:01:51]} 35. Kg1 {[%emt 0:01:05] [#]} d5 {[%emt 0:01:41]} 36. Kf1 $17 {[%emt 0:00:13]} Rxh2 {[%emt 0:00:06]} 37. exd5 {[%emt 0:00:09]} exd5 {[%emt 0:00:05]} 38. Nxd5 {[%emt 0:00:15]} Ke6 {[%emt 0:02:48]} 39. Nc7+ $1 {[%emt 0:00:26]} Kf5 {[%emt 0:01:11] [#] ...Ke4 would now be deadly.} 40. Rd8 {[%emt 0:00:27] The position is equal.} Rc2 {[%emt 0:02:10]} 41. Nd5 {[%emt 0:03:51] Threatens to win with Ne3+.} Ke5 {[%emt 0:00:37]} 42. Rxf8 {[%emt 0:01:30]} Kxd5 $11 {[%emt 0:00:07] KR-KR} 43. Rb8 {[%emt 0:00:05]} Rc3 {[%emt 0:00:10][%csl LRb3,LRg3] Hoping for ...Kc5.} 44. Rxb4 {[%emt 0:00:14]} Rxg3 {[%emt 0:00:04]} 45. Rh4 {[%emt 0:00:24]} Rxb3 {[%emt 0:00:12]} 46. Rxh6 {[%emt 0:00:12]} f5 {[%emt 0:00:03]} 47. Rh4 {[%emt 0:00:51]} Ke5 {[%emt 0:00:06]} 48. Ke2 {[%emt 0:00:24]} Rb2+ {[%emt 0:00:41]} 49. Ke1 {[%emt 0:00:08]} f4 {[%emt 0:00:21]} 50. Rh3 {[%emt 0:00:18]} Kf5 {[%emt 0:00:04]} 51. Kf1 {[%emt 0:00:43]} Kg4 {[%emt 0:00:05]} 52. Ra3 {[%emt 0:00:11]} Rb1+ {[%emt 0:00:29]} 53. Kf2 {[%emt 0:00:10]} Rb8 {[%emt 0:00:06]} 54. Rc3 {[%emt 0:00:14]} Rh8 {[%emt 0:00:05]} 55. Kg2 {[%emt 0:00:24]} Ra8 {[%emt 0:00:03]} 56. Kf2 {[%emt 0:00:10]} Ra2+ {[%emt 0:00:05]} 57. Kg1 {[%emt 0:00:06]} Re2 {[%emt 0:01:12]} 58. Kf1 {[%emt 0:00:15]} Rb2 {[%emt 0:35:31]} 59. Ra3 {[%emt 0:00:17]} Kf5 {[%emt 0:00:00]} 60. Ra5+ {[%emt 0:00:18]} Ke4 {[%emt 0:00:00]} 61. Ra4+ {[%emt 0:00:08]} Kf5 {[%emt 0:00:00]} (61... Kf3 $5 62. Ra3+ $8 Kg4 $11) 62. Ra5+ {[%emt 0:00:09]} Kg4 {[%emt 0:00:00] Black wants to play ...Kg3.} 63. Ra3 {[%emt 0:00:07]} Rd2 {[%emt 0:00:00]} 64. Rb3 {[%emt 0:00:17]} Kf5 {[%emt 0:00:00]} 65. Rb5+ {[%emt 0:00:14]} Kg4 {[%emt 0:00:00] Threatening ...Kg3.} 66. Rb3 {[%emt 0:00:04] Black had all chances to win.   Weighted Error Value: White=0.09 (flawless) /Black=0.08 (flawless) .  Mistake:       	White=4     	Black=1      Inaccurate:     	---       	Black=4      OK:         	White=21    	Black=15     Best:        	White=4     	Black=2      Strong:       	White=1     	---} 1/2-1/2

[Event "Baku Open 2024"]
[Site "Baku"]
[Date "2024.07.06"]
[Round "8.26"]
[White "Moosavifar, Seyed Abolfazl"]
[Black "Kaldarova, Ayaulym"]
[Result "0-1"]
[ECO "C17"]
[WhiteElo "2283"]
[BlackElo "2100"]
[Annotator "TA"]
[PlyCount "133"]
[EventDate "2024.06.29"]
[EventType "swiss"]
[EventCountry "AZE"]
[SourceTitle "playchess.com"]
[Source "ChessBase"]
[SourceQuality "1"]
[TimeControl "5400+30"]

{[%evp 30,133,-295,-365,-361,-428,-259,-219,-172,-168,-160,-173,-137,-238,-151,-160,-163,-157,-149,-146,-143,-144,-150,-238,-238,-211,-154,-269,-258,-481,-481,-707,-596,-734,-415,-400,-411,-422,-408,-409,-393,-403,-298,-366,-349,-419,-409,-593,-583,-649,-638,-755,-738,-733,-497,-591,-475,-502,-462,-551,-542,-544,-328,-646,-650,-895,-881,-29996,-1333,-29997,-1266,-1159,-784,-727,-628,-672,-690,-680,-697,-747,-630,-725,-725,-707,-704,-685,-641,-777,-770,-1033,-1007,-1040,-1052,-1497,-1533,-1828,-1573,-2007,-1827,-4702,-1831,-6934,-6663,-5609,-4770,-2025]} 1. e4 {[%emt 0:03:52]} e6 {[%emt 0:00:14]} 2. d4 {[%emt 0:00:04]} d5 {[%emt 0:00:07]} 3. Nc3 {[%emt 0:00:05]} Bb4 {[%emt 0:00:48]} 4. e5 {[%emt 0:00:08]} c5 {[%emt 0:00:11]} 5. Bd2 {[%emt 0:00:05]} Ne7 {[%emt 0:01:11]} 6. Nb5 {[%emt 0:06:49]} Bxd2+ {[%emt 0:01:05]} 7. Qxd2 {[%emt 0:00:02]} O-O {[%emt 0:00:19]} 8. Nf3 {[%emt 0:03:33]} a6 {[%emt 0:07:09]} 9. Nd6 {[%emt 0:03:27]} cxd4 {[%emt 0:00:57]} 10. Nxc8 {[%emt 0:04:28]} Qxc8 {[%emt 0:00:37]} 11. Bd3 {[%emt 0:01:54]} Nbc6 {[%emt 0:07:28]} 12. O-O-O {[%emt 0:13:12]} Qc7 {[%emt 0:05:24]} 13. Ng5 {[%emt 0:07:59]} h6 {[%emt 0:08:38]} 14. Bh7+ {[%emt 0:19:57]} Kh8 {[%emt 0:00:10]} 15. h4 {[%emt 0:00:05]} Nxe5 {[%emt 0:04:07]} (15... hxg5 16. hxg5 Qxe5 (16... Nxe5 $2 17. Qf4 $18) 17. Be4+ Kg8 18. Rh8+ (18. Bh7+ Kh8 $11) 18... Kxh8 19. Rh1+ Kg8 20. Bh7+ Kh8 21. Bf5+ Kg8 22. Bh7+ Kh8 23. Bd3+ Kg8 $11) 16. Qxd4 {[%emt 0:04:19]} Rac8 {[%emt 0:06:12]} (16... hxg5 17. hxg5 Ng8 18. c3 $16) 17. Kb1 {[%emt 0:04:07]} Nc4 {[%emt 0:04:47]} (17... hxg5 18. hxg5 g6 19. Qf4 $19) 18. Bd3 {[%emt 0:03:03]} Nc6 {[%emt 0:10:26]} (18... hxg5 19. hxg5+) 19. Qc3 {[%emt 0:01:41]} b5 {[%emt 0:00:48]} (19... hxg5 20. hxg5+ Kg8 21. Bh7+ Kh8 22. Bg6+) 20. Nf3 {[%emt 0:04:15]} N6e5 {[%emt 0:03:14]} 21. Ng5 {[%emt 0:04:58]} (21. Nxe5 $17 Nxe5 (21... Qxe5 22. Qxe5 Nxe5 23. Be2 $17) 22. Qxc7 Rxc7 23. Be2) 21... Qa5 {[%emt 0:05:51]} (21... hxg5 22. hxg5+ Kg8 23. Bh7+ Kh8 24. Bf5+ Kg8 25. Rh8+ (25. Qh3 Na3+ 26. bxa3 Qxc2+ 27. Bxc2 f5 $18) 25... Kxh8 26. Qh3+ Kg8 27. Qh7#) 22. Qxa5 {[%emt 0:02:53]} Nxa5 {[%emt 0:00:05]} 23. Nh3 {[%emt 0:00:13]} Rc6 {[%emt 0:03:17]} 24. Be2 {[%emt 0:00:18]} Rfc8 {[%emt 0:00:19]} 25. c3 {[%emt 0:00:14]} Nac4 {[%emt 0:00:42]} 26. g4 {[%emt 0:01:43] [#]} (26. Nf4 $17 {ist eine bessere Verteidigung.}) 26... b4 $1 $19 {[%emt 0:01:20]} 27. f4 {[%emt 0:01:40]} Ne3 {[%emt 0:03:21]} 28. Rd4 {[%emt 0:05:35]} (28. fxe5 $17 Nxd1 (28... bxc3 29. Rc1 $11) 29. Bxd1) 28... N5c4 $19 {[%emt 0:04:49]} ({Viel schwächer ist} 28... N5xg4 29. Rxb4 Nf6 30. Nf2 $19) 29. cxb4 $2 {[%emt 0:01:07]} (29. Bxc4 {war nötig.} Rxc4 30. Rd3 Nxg4 31. cxb4) 29... Nxb2 $19 {[%emt 0:01:00]} 30. Nf2 {[%emt 0:02:45]} (30. Kxb2 $142 Rc2+ 31. Kb1 Rxe2 32. Rd3) 30... Na4 {[%emt 0:00:45]} 31. Rd2 {[%emt 0:00:47]} Nc3+ {[%emt 0:00:25]} 32. Ka1 {[%emt 0:00:07]} Nxe2 {[%emt 0:00:13]} 33. Rxe2 {[%emt 0:00:01]} Nc2+ {[%emt 0:00:13]} 34. Kb1 {[%emt 0:00:35]} Nxb4 {[%emt 0:00:12]} 35. Rb2 {[%emt 0:00:29]} Nc2 {[%emt 0:00:27]} 36. Rb3 {[%emt 0:00:59]} Nd4 {[%emt 0:00:23]} 37. Rb7 {[%emt 0:00:49]} Nb5 {[%emt 0:03:16]} 38. a4 {[%emt 0:00:37]} (38. Nd3 $142) 38... Nc3+ $19 {[%emt 0:00:53]} 39. Ka1 {[%emt 0:00:26]} Rc4 {[%emt 0:00:13]} 40. Nd3 {[%emt 0:00:25]} Rxa4+ {[%emt 0:00:14]} 41. Kb2 {[%emt 0:00:00]} Rd4 {[%emt 0:00:33]} 42. Ne5 {[%emt 0:00:57]} Na4+ {[%emt 0:01:04]} 43. Ka3 {[%emt 0:00:21]} Rxf4 {[%emt 0:01:40]} 44. Rh3 {[%emt 0:00:47]} Kg8 {[%emt 0:00:27]} 45. Rhb3 {[%emt 0:00:25]} g6 {[%emt 0:03:53]} 46. Nd7 $2 {[%emt 0:00:37]} (46. R3b4 Nc5 (46... Rxb4 $2 47. Kxb4 Nc5 48. Ra7 $19) 47. Rxf4 Nxb7 48. Rxf7 Rc3+ 49. Kb4 Rc4+ 50. Nxc4 Kxf7 51. Ne3) 46... Kg7 $19 {[%emt 0:00:58]} (46... Rxg4 47. Nf6+ Kg7 48. Nxg4 $11) 47. Ra7 {[%emt 0:00:32]} Rc1 {[%emt 0:01:38]} 48. Rbb7 {[%emt 0:00:32]} Ra1+ {[%emt 0:00:23]} 49. Kb3 {[%emt 0:00:01]} Rb1+ {[%emt 0:00:19]} (49... Rf2 $142 50. Kb4 Rb2+ 51. Ka5 Nc5#) 50. Ka3 $19 {[%emt 0:00:04]} Rxb7 {[%emt 0:02:17]} 51. Rxb7 {[%emt 0:00:01]} Nc3 {[%emt 0:00:18]} 52. Nc5 {[%emt 0:01:08]} Nb5+ {[%emt 0:00:30]} 53. Kb2 {[%emt 0:00:34]} Nd4 {[%emt 0:00:53]} 54. g5 {[%emt 0:00:59]} Rxh4 {[%emt 0:01:13]} 55. gxh6+ {[%emt 0:00:02]} Rxh6 {[%emt 0:00:12]} 56. Kc3 {[%emt 0:00:06]} Rh4 {[%emt 0:00:20]} 57. Nxa6 {[%emt 0:00:06]} Nf5 {[%emt 0:01:08]} 58. Nc7 {[%emt 0:00:20]} Nd6 {[%emt 0:00:55]} 59. Ra7 {[%emt 0:00:02]} Kf6 {[%emt 0:00:28]} 60. Kd3 {[%emt 0:00:03]} g5 {[%emt 0:01:59]} 61. Na8 {[%emt 0:00:34]} g4 {[%emt 0:01:22]} 62. Nb6 {[%emt 0:00:23]} g3 {[%emt 0:00:15]} 63. Nd7+ {[%emt 0:00:04]} Kf5 {[%emt 0:00:25]} 64. Ke2 {[%emt 0:00:16]} Rf4 {[%emt 0:00:40]} 65. Ra1 {[%emt 0:00:02]} Rf2+ {[%emt 0:00:15]} 66. Ke3 {[%emt 0:00:01]} Nc4+ {[%emt 0:00:07]} 67. Kd4 {[%emt 0:05:17]} 0-1

[Event "Baku Open 2024"]
[Site "Baku"]
[Date "2024.07.06"]
[Round "8.27"]
[White "Allahverdiyeva, Ayan"]
[Black "Zhalmakhanov, Ramazan"]
[Result "0-1"]
[ECO "C78"]
[WhiteElo "2133"]
[BlackElo "2505"]
[Annotator "TA"]
[PlyCount "98"]
[EventDate "2024.06.29"]
[EventType "swiss"]
[EventCountry "AZE"]
[SourceTitle "playchess.com"]
[Source "ChessBase"]
[SourceQuality "1"]
[TimeControl "5400+30"]

{[%evp 17,98,54,50,6,14,12,10,15,6,11,34,17,25,0,46,54,88,0,44,50,59,21,81,44,65,0,117,126,117,0,0,-41,0,-67,-29,-57,0,-89,-78,-175,-156,-183,-50,-483,-143,-187,-179,-284,-236,-303,-295,-284,-296,-580,-535,-575,-585,-585,-580,-578,-573,-668,-651,-979,-947,-1064,-1045,-1050,-1033,-1076,-951,-1147,-1130,-1489,-1458,-2172,-2568,-2184,-1496,-29971,-29970,-29981,-29982]} 1. e4 {[%emt 0:00:19]} e5 {[%emt 0:04:38]} 2. Nf3 {[%emt 0:00:06]} Nc6 {[%emt 0:00:06]} 3. Bb5 {[%emt 0:00:06]} a6 {[%emt 0:00:04]} 4. Ba4 {[%emt 0:00:04]} Nf6 {[%emt 0:00:05]} 5. O-O {[%emt 0:00:04]} b5 {[%emt 0:00:28]} 6. Bb3 {[%emt 0:00:07]} Bc5 {[%emt 0:00:05]} 7. c3 {[%emt 0:01:12]} d6 {[%emt 0:00:11]} 8. a4 {[%emt 0:00:11][%cal Ba2a4,Ba4a5][%mdl 32]} Rb8 {[%emt 0:01:29]} 9. d4 {[%emt 0:00:11]} Bb6 {[%emt 0:00:05]} 10. a5 {[%emt 0:00:20]} Ba7 {[%emt 0:00:01]} 11. h3 {[%emt 0:00:11]} O-O {[%emt 0:01:00]} 12. Be3 {[%emt 0:00:05] The position is equal.} Ra8 {[%emt 0:04:10]} (12... Nxe4 13. Bd5 exd4 14. Bxe4) 13. Re1 {[%emt 0:02:30]} Re8 {[%emt 0:00:54]} 14. Nbd2 {[%emt 0:13:40]} h6 {[%emt 0:03:08]} 15. Bc2 {[%emt 0:09:31]} Bd7 {[%emt 0:07:54]} (15... Bb7 $11 {is superior.}) 16. Bb1 $14 {[%emt 0:07:04]} Qc8 {[%emt 0:06:14]} 17. Qb3 {[%emt 0:06:30]} (17. Nf1 $1 $16) 17... Nh5 {[%emt 0:11:04]} (17... Nd8 $5) 18. Ba2 {[%emt 0:09:26]} Nd8 {[%emt 0:07:56]} 19. Nh4 {[%emt 0:08:52]} c5 {[%emt 0:11:00]} (19... Nf6 $11) 20. Qd1 {[%emt 0:08:11]} Nf6 {[%emt 0:02:42]} 21. Qf3 {[%emt 0:10:25]} ({Better is} 21. dxe5 $14 dxe5 22. Bd5) 21... Kh7 {[%emt 0:01:12]} (21... c4 $11) 22. dxe5 $16 {[%emt 0:03:36]} dxe5 {[%emt 0:00:17]} 23. Nf1 {[%emt 0:00:42]} (23. Bd5 $1 $16) 23... c4 $11 {[%emt 0:00:55]} 24. Bd2 {[%emt 0:03:40]} Qc6 {[%emt 0:02:28]} 25. Ng3 {[%emt 0:03:28]} (25. Bb1 $11) 25... g6 {[%emt 0:04:58]} 26. Bb1 {[%emt 0:00:08]} Kg7 {[%emt 0:00:32]} (26... Nb7 $15) 27. Nf1 {[%emt 0:00:55]} (27. Bc2 $11 {keeps the balance.}) 27... Nb7 $17 {[%emt 0:02:54]} 28. Ne3 {[%emt 0:01:35]} (28. Bc2 $17 {keeps fighting.}) 28... Nc5 $1 $19 {[%emt 0:01:02][%cal Oc5b3] Threatens to win with ...Nb3!} 29. Nd5 {[%emt 0:03:58] [#]} g5 {[%emt 0:02:51]} (29... Nxd5 $1 $19 30. exd5 Qd6) 30. Qg3 $2 {[%emt 0:03:50][%mdl 8192] This costs White the game.} ({White must play} 30. Nb4 $1 $15 Qb7 31. Nd5) 30... Nxd5 $2 {[%emt 0:03:39]} (30... Ncxe4 $19 31. Bxe4 Nxe4 (31... Nxd5 $2 {too greedy.} 32. Rad1 $18) 32. Rxe4 Qxd5) 31. exd5 $17 {[%emt 0:01:04] [#]} Qf6 {[%emt 0:00:02]} (31... Qxd5 32. Bxg5 e4 (32... hxg5 $2 {perishes.} 33. Qxg5+ Kf8 34. Qf6 $18) 33. Be3+ Kf8 34. Bxh6+ Ke7 35. Bg5+ Ke6 36. Bc2 $18) 32. Bc2 {[%emt 0:01:00]} (32. Be3 {is a better defense.}) 32... e4 $19 {[%emt 0:00:24]} 33. Be3 {[%emt 0:00:06] Bd4 is the strong threat.} Bb8 {[%emt 0:00:17]} 34. f4 {[%emt 0:00:39]} Bxf4 {[%emt 0:00:15]} 35. Qf2 {[%emt 0:00:39]} (35. Bxf4 {is the only way for White.} Qxf4 36. Qxf4 gxf4 37. Rf1) 35... Bxe3 {[%emt 0:01:25]} 36. Qxe3 {[%emt 0:00:04]} Nd3 {[%emt 0:00:04]} 37. Rf1 {[%emt 0:02:54]} Qe5 {[%emt 0:00:06]} 38. Bxd3 {[%emt 0:00:20]} cxd3 {[%emt 0:03:21]} 39. Qf2 {[%emt 0:00:03]} f6 {[%emt 0:00:52] Active counter play!} 40. Nf5+ {[%emt 0:00:20]} Bxf5 {[%emt 0:00:10]} 41. Qxf5 {[%emt 0:00:03]} Rad8 {[%emt 0:00:27]} 42. Qxe5 {[%emt 0:02:13]} Rxe5 {[%emt 0:00:05][%mdl 4096] Endgame. KRR-KRR} 43. Rfe1 {[%emt 0:00:34]} Rdxd5 {[%emt 0:00:19] And now ...d2 would win.} 44. Rad1 {[%emt 0:00:08]} f5 {[%emt 0:00:12]} 45. b3 {[%emt 0:00:48]} e3 {[%emt 0:01:20]} 46. c4 {[%emt 0:00:06]} bxc4 {[%emt 0:00:13]} 47. bxc4 {[%emt 0:00:02]} Rd4 {[%emt 0:00:09][%cal Od3d2] Hoping for ...d2!} 48. c5 {[%emt 0:00:19]} d2 {[%emt 0:00:14]} 49. Re2 {[%emt 0:00:05]} Rxc5 {[%emt 0:00:17] Weighted Error Value: White=1.02/Black=0.30.  Loses game:     	White=1     	---        Missed win:     	---       	Black=1      Mistake:       	White=8     	Black=5      Inaccurate:     	White=6     	Black=4      OK:         	White=8     	Black=14     Best:        	White=1     	Black=1} 0-1

[Event "Baku Open 2024"]
[Site "Baku"]
[Date "2024.07.06"]
[Round "8.28"]
[White "Kairbekova, Amina"]
[Black "Tsaruk, Maksim"]
[Result "1/2-1/2"]
[ECO "C44"]
[WhiteElo "2244"]
[BlackElo "2480"]
[Annotator "TA"]
[PlyCount "43"]
[EventDate "2024.06.29"]
[EventType "swiss"]
[EventCountry "AZE"]
[SourceTitle "playchess.com"]
[Source "ChessBase"]
[SourceQuality "1"]
[TimeControl "5400+30"]

{[%evp 16,43,0,0,0,-1,0,0,0,0,0,0,0,0,0,0,0,0,0,0,0,0,0,0,0,0,0,0,0,0]} 1. e4 {[%emt 0:00:02]} e5 {[%emt 0:07:52]} 2. Nf3 {[%emt 0:00:06]} Nc6 {[%emt 0:00:08]} 3. d4 {[%emt 0:00:04]} exd4 {[%emt 0:00:31]} 4. Bc4 {[%emt 0:00:05]} Bc5 {[%emt 0:00:21]} 5. Ng5 {[%emt 0:00:11]} Nh6 {[%emt 0:01:52]} 6. Nxf7 {[%emt 0:01:01]} Nxf7 {[%emt 0:00:07]} 7. Bxf7+ {[%emt 0:00:09]} Kxf7 {[%emt 0:00:05]} 8. Qh5+ {[%emt 0:00:08]} g6 {[%emt 0:00:25]} 9. Qxc5 {[%emt 0:00:08] The position is equal.} d5 {[%emt 0:00:48]} 10. O-O {[%emt 0:01:03]} dxe4 {[%emt 0:00:06]} 11. c3 {[%emt 0:00:32]} Qd6 {[%emt 0:09:52]} 12. Qxd6 {[%emt 0:00:30]} cxd6 {[%emt 0:00:05]} 13. cxd4 {[%emt 0:00:04]} Nxd4 {[%emt 0:03:08] [#] Threatens to win with ...Nc2.} 14. Nc3 {[%emt 0:04:13][%cal Oc1g5]} Bg4 {[%emt 0:00:15]} 15. Nxe4 {[%emt 0:00:16][%cal Of2f3]} Nc2 {[%emt 0:18:11]} 16. Nxd6+ {[%emt 0:00:16]} Ke6 {[%emt 0:00:52]} 17. Bf4 $1 {[%emt 0:00:06]} Nxa1 {[%emt 0:00:06]} 18. Rxa1 {[%emt 0:00:04][%cal Oh2h3]} Rhf8 {[%emt 0:10:40]} 19. Bg3 {[%emt 0:01:03][%cal Of2f3]} b6 {[%emt 0:02:11]} 20. Re1+ {[%emt 0:00:07]} Kd7 {[%emt 0:00:09]} 21. f3 {[%emt 0:01:08]} Bf5 {[%emt 0:03:11]} 22. Rd1 {[%emt 0:02:17] A rather calm draw.   Weighted Error Value: White=0.00 (flawless) /Black=0.00 (flawless) .  OK:         	White=8     	Black=10     Best:        	White=1     	---        Strong:       	White=1     	---} 1/2-1/2

[Event "Baku Open 2024"]
[Site "Baku"]
[Date "2024.07.06"]
[Round "8.29"]
[White "Salimova, Nurgyul"]
[Black "Valiyev, Shahin"]
[Result "1/2-1/2"]
[ECO "E06"]
[WhiteElo "2436"]
[BlackElo "2244"]
[Annotator "TA"]
[PlyCount "81"]
[EventDate "2024.06.29"]
[EventType "swiss"]
[EventCountry "AZE"]
[SourceTitle "playchess.com"]
[Source "ChessBase"]
[SourceQuality "1"]
[TimeControl "5400+30"]

{[%evp 18,81,28,10,23,25,25,34,29,17,39,40,58,0,13,9,14,0,2,2,2,8,10,8,5,4,8,-9,-9,-8,-8,-8,0,0,24,25,32,31,32,23,45,0,27,28,27,28,29,27,42,9,44,26,39,0,38,38,34,33,47,42,44,38,31,0,0,0]} 1. d4 {[%emt 0:02:00]} d5 {[%emt 0:00:10]} 2. c4 {[%emt 0:00:33]} e6 {[%emt 0:00:05]} 3. Nc3 {[%emt 0:01:41]} Be7 {[%emt 0:00:05]} 4. Nf3 {[%emt 0:00:34]} Nf6 {[%emt 0:00:07]} 5. g3 {[%emt 0:00:15]} O-O {[%emt 0:00:44]} 6. Bg2 {[%emt 0:00:07]} dxc4 {[%emt 0:00:19]} 7. Ne5 {[%emt 0:00:07]} c5 {[%emt 0:00:05]} 8. dxc5 {[%emt 0:00:17]} Qxd1+ {[%emt 0:00:07]} 9. Nxd1 {[%emt 0:00:03][%cal Bc3d1,Bd1e3,Be3c4,Bc4e5,Be5d3,Bd3f4][%mdl 32]} Bxc5 {[%emt 0:00:19]} 10. O-O {[%emt 0:00:15]} Nd5 {[%emt 0:09:28]} 11. Ne3 {[%emt 0:15:01]} Nc6 {[%emt 0:09:31]} 12. N3xc4 {[%emt 0:14:26]} Nxe5 {[%emt 0:08:07] White is slightly better.} 13. Nxe5 {[%emt 0:00:57]} f6 {[%emt 0:00:20]} 14. Nd3 {[%emt 0:00:35]} Be7 {[%emt 0:00:30]} 15. Bxd5 {[%emt 0:02:46]} exd5 {[%emt 0:00:05]} 16. Be3 {[%emt 0:00:59]} b6 {[%emt 0:12:06]} 17. Nf4 {[%emt 0:01:57]} Rd8 {[%emt 0:01:15]} 18. Rfd1 {[%emt 0:00:20]} Bb7 {[%emt 0:00:12]} 19. Rac1 {[%emt 0:00:46]} Rd7 {[%emt 0:00:11] Wards off Rc7} 20. h4 {[%emt 0:03:34]} Kf7 {[%emt 0:00:23]} 21. Bd4 {[%emt 0:12:44]} Bd6 {[%emt 0:02:06]} 22. Ng2 {[%emt 0:01:28]} Rc8 {[%emt 0:04:18]} 23. Rxc8 {[%emt 0:01:05]} Bxc8 {[%emt 0:00:05]} 24. Ne3 {[%emt 0:00:14]} Bb7 {[%emt 0:00:30]} 25. h5 {[%emt 0:03:07]} h6 {[%emt 0:06:17]} 26. Kg2 {[%emt 0:01:51]} Ke6 {[%emt 0:01:21]} 27. f3 {[%emt 0:04:21][%cal Bf2f3,Bf3f4][%mdl 32]} Rc7 {[%emt 0:05:34]} 28. Kf2 {[%emt 0:02:38]} Be5 {[%emt 0:08:57]} 29. f4 {[%emt 0:02:10]} Bd6 {[%emt 0:00:01]} 30. Kf3 {[%emt 0:00:44]} Bf8 {[%emt 0:03:35]} 31. g4 {[%emt 0:00:30]} Be7 {[%emt 0:02:17]} 32. Nf5 {[%emt 0:03:14]} Kf7 {[%emt 0:00:44]} 33. Rg1 {[%emt 0:04:57][%cal Og4g5]} Bc8 {[%emt 0:02:12]} 34. Ne3 {[%emt 0:01:10]} Bb7 {[%emt 0:00:06]} 35. Nf5 {[%emt 0:02:21]} Bc8 {[%emt 0:00:07]} 36. Nxe7 {[%emt 0:00:52]} Rxe7 {[%emt 0:02:05]} 37. Rc1 {[%emt 0:01:24]} Bb7 {[%emt 0:03:30]} 38. e3 {[%emt 0:00:31]} Re6 {[%emt 0:03:08]} 39. Rg1 {[%emt 0:01:18]} Rc6 {[%emt 0:01:10]} 40. g5 {[%emt 0:00:42]} Bc8 {[%emt 0:01:54]} 41. Bc3 {[%emt 0:07:49] Weighted Error Value: White=0.09 (flawless) /Black=0.08 (flawless) .  Inaccurate:     	White=4     	Black=2      OK:         	White=14    	Black=6      Best:        	---       	Black=1} 1/2-1/2